[Event "*** SCC Grand Prix: Titled Tuesday Blitz"]
[Site "Chess.com"]
[Date "2020.07.21"]
[Round "4"]
[White "Korchmar_Vasiliy"]
[Black "Chesswizard_2007"]
[Result "1-0"]
[WhiteElo "2632"]
[BlackElo "2459"]
[TimeControl "180+1"]
[EndTime "10:39:12 PDT"]
[Termination "Korchmar_Vasiliy won by checkmate"]

1. d4 {[%clk 0:03:00.9]} 1... Nf6 {[%clk 0:02:58.4]} 2. Nf3 {[%clk 0:03:01.2]}
2... g6 {[%clk 0:02:57.8]} 3. Bg5 {[%clk 0:03:01.4]} 3... Bg7 {[%clk 0:02:57.3]}
4. Nbd2 {[%clk 0:03:01.9]} 4... d5 {[%clk 0:02:57]} 5. e3 {[%clk 0:03:02.3]}
5... O-O {[%clk 0:02:56.5]} 6. Be2 {[%clk 0:03:02.6]} 6... c5 {[%clk 0:02:56.7]}
7. c3 {[%clk 0:03:02.9]} 7... Nc6 {[%clk 0:02:55.9]} 8. dxc5 {[%clk 0:03:01.6]}
8... h6 {[%clk 0:02:50.9]} 9. Bh4 {[%clk 0:02:59.7]} 9... e5 {[%clk 0:02:49.8]}
10. O-O {[%clk 0:02:58.8]} 10... Qc7 {[%clk 0:02:43.8]} 11. b4 {[%clk
0:02:57.5]} 11... Be6 {[%clk 0:02:39.2]} 12. Bg3 {[%clk 0:02:42.2]} 12... Nh5
{[%clk 0:02:37.8]} 13. Nb3 {[%clk 0:02:35.9]} 13... Nxg3 {[%clk 0:02:32.9]} 14.
hxg3 {[%clk 0:02:36.8]} 14... Rad8 {[%clk 0:02:30.7]} 15. Rc1 {[%clk 0:02:36.2]}
15... f5 {[%clk 0:02:26.6]} 16. a4 {[%clk 0:02:27.3]} 16... g5 {[%clk
0:02:25.8]} 17. Qc2 {[%clk 0:02:19.3]} 17... f4 {[%clk 0:02:21.3]} 18. exf4
{[%clk 0:02:18.4]} 18... gxf4 {[%clk 0:02:20.7]} 19. gxf4 {[%clk 0:02:18.6]}
19... Rxf4 {[%clk 0:02:21.6]} 20. Qg6 {[%clk 0:01:57.1]} 20... Bf5 {[%clk
0:02:05.4]} 21. Qg3 {[%clk 0:01:51.8]} 21... Rg4 {[%clk 0:01:52.7]} 22. Qh2
{[%clk 0:01:51.9]} 22... Be4 {[%clk 0:01:40.8]} 23. Nbd2 {[%clk 0:01:48.3]}
23... Bh7 {[%clk 0:01:21.7]} 24. Nd4 {[%clk 0:01:43]} 24... Rxd4 {[%clk
0:01:11.9]} 25. cxd4 {[%clk 0:01:41]} 25... Nxd4 {[%clk 0:01:12.8]} 26. Bg4
{[%clk 0:01:26.4]} 26... Qf7 {[%clk 0:01:09.5]} 27. b5 {[%clk 0:01:13.8]} 27...
Bf5 {[%clk 0:01:00.6]} 28. Bxf5 {[%clk 0:01:08]} 28... Ne2+ {[%clk 0:00:59.9]}
29. Kh1 {[%clk 0:01:08.3]} 29... Nxc1 {[%clk 0:01:00.5]} 30. Qh3 {[%clk
0:01:08.8]} 30... Qe7 {[%clk 0:00:42]} 31. Rxc1 {[%clk 0:01:06.9]} 31... e4
{[%clk 0:00:40.5]} 32. c6 {[%clk 0:01:03.6]} 32... bxc6 {[%clk 0:00:41.4]} 33.
bxc6 {[%clk 0:01:04.5]} 33... Qc7 {[%clk 0:00:39.3]} 34. Qg4 {[%clk 0:00:54]}
34... Rd6 {[%clk 0:00:34.1]} 35. Bd7 {[%clk 0:00:42.7]} 35... Kf8 {[%clk
0:00:28.5]} 36. Qf5+ {[%clk 0:00:42.1]} 36... Ke7 {[%clk 0:00:27.1]} 37. Nf1
{[%clk 0:00:37.6]} 37... Rf6 {[%clk 0:00:24.4]} 38. Qxd5 {[%clk 0:00:30.8]}
38... Rf4 {[%clk 0:00:22.7]} 39. Ng3 {[%clk 0:00:24.9]} 39... e3 {[%clk
0:00:16.1]} 40. Nf5+ {[%clk 0:00:21.5]} 40... Kf8 {[%clk 0:00:14.4]} 41. fxe3
{[%clk 0:00:13.1]} 41... Rg4 {[%clk 0:00:07.5]} 42. Qd6+ {[%clk 0:00:13.3]}
42... Qxd6 {[%clk 0:00:06.6]} 43. Nxd6 {[%clk 0:00:14.2]} 43... Rh4+ {[%clk
0:00:06.8]} 44. Kg1 {[%clk 0:00:14.6]} 44... Bd4 {[%clk 0:00:03.9]} 45. exd4
{[%clk 0:00:14.1]} 45... Rh1+ {[%clk 0:00:01.4]} 46. Kxh1 {[%clk 0:00:13.6]}
46... Ke7 {[%clk 0:00:02.1]} 47. c7 {[%clk 0:00:14.4]} 47... Kf6 {[%clk
0:00:03]} 48. c8=Q {[%clk 0:00:15.3]} 48... Kg7 {[%clk 0:00:03.9]} 49. Qe8
{[%clk 0:00:15.2]} 49... Kf6 {[%clk 0:00:04.8]} 50. Rf1+ {[%clk 0:00:15.4]}
50... Kg5 {[%clk 0:00:05.7]} 51. Rf5+ {[%clk 0:00:15.2]} 51... Kh4 {[%clk
0:00:06.6]} 52. Qh5+ {[%clk 0:00:15.2]} 52... Kg3 {[%clk 0:00:07.5]} 53. Rf3#
{[%clk 0:00:15.5]} 1-0

[Event "*** SCC Grand Prix: Titled Tuesday Blitz"]
[Site "Chess.com"]
[Date "2020.07.21"]
[Round "4"]
[White "Rud_Makarian"]
[Black "pooh2012"]
[Result "0-1"]
[WhiteElo "2596"]
[BlackElo "2434"]
[TimeControl "180+1"]
[EndTime "10:39:13 PDT"]
[Termination "pooh2012 won by checkmate"]

1. e4 {[%clk 0:03:00.9]} 1... c6 {[%clk 0:02:54.2]} 2. Nc3 {[%clk 0:03:00]} 2...
d5 {[%clk 0:02:54.8]} 3. d4 {[%clk 0:03:00.9]} 3... dxe4 {[%clk 0:02:54.2]} 4.
Nxe4 {[%clk 0:03:01.8]} 4... Nd7 {[%clk 0:02:54.5]} 5. Nf3 {[%clk 0:03:00.7]}
5... Ngf6 {[%clk 0:02:54.1]} 6. Bd3 {[%clk 0:03:00.9]} 6... Nxe4 {[%clk
0:02:54.2]} 7. Bxe4 {[%clk 0:03:01.8]} 7... Nf6 {[%clk 0:02:54.5]} 8. Bd3 {[%clk
0:03:02.2]} 8... Bg4 {[%clk 0:02:54.8]} 9. c3 {[%clk 0:03:00.6]} 9... e6 {[%clk
0:02:54.6]} 10. h3 {[%clk 0:03:00.5]} 10... Bh5 {[%clk 0:02:53.1]} 11. Bg5
{[%clk 0:02:38.8]} 11... Qd5 {[%clk 0:02:35.9]} 12. Be3 {[%clk 0:02:02]} 12...
Bxf3 {[%clk 0:02:34]} 13. Qxf3 {[%clk 0:01:59.1]} 13... Qxf3 {[%clk 0:02:33.3]}
14. gxf3 {[%clk 0:02:00]} 14... Bd6 {[%clk 0:02:29.6]} 15. Ke2 {[%clk
0:02:00.1]} 15... Ke7 {[%clk 0:02:25.5]} 16. Rhg1 {[%clk 0:01:59.8]} 16... g6
{[%clk 0:02:24.8]} 17. Bg5 {[%clk 0:01:57.8]} 17... h6 {[%clk 0:02:23.6]} 18.
Be3 {[%clk 0:01:58.1]} 18... Nd5 {[%clk 0:02:20]} 19. a4 {[%clk 0:01:50.5]}
19... Nf4+ {[%clk 0:02:17.5]} 20. Bxf4 {[%clk 0:01:45.7]} 20... Bxf4 {[%clk
0:02:18.4]} 21. a5 {[%clk 0:01:45]} 21... a6 {[%clk 0:02:17.1]} 22. b4 {[%clk
0:01:39.2]} 22... Rad8 {[%clk 0:02:07.6]} 23. Rgd1 {[%clk 0:01:30]} 23... Rd5
{[%clk 0:01:38.6]} 24. Be4 {[%clk 0:01:23.5]} 24... Rh5 {[%clk 0:01:34.6]} 25.
Rh1 {[%clk 0:01:23.7]} 25... Rd8 {[%clk 0:01:29.5]} 26. Rad1 {[%clk 0:01:22.2]}
26... Rh4 {[%clk 0:00:46.4]} 27. c4 {[%clk 0:01:17.5]} 27... f5 {[%clk
0:00:43.5]} 28. Bc2 {[%clk 0:01:15.4]} 28... Bd6 {[%clk 0:00:39.1]} 29. c5
{[%clk 0:01:07.7]} 29... Bc7 {[%clk 0:00:36.9]} 30. Ke3 {[%clk 0:01:05.7]} 30...
Bf4+ {[%clk 0:00:36.7]} 31. Ke2 {[%clk 0:00:59.1]} 31... Bg5 {[%clk 0:00:35.6]}
32. Rd3 {[%clk 0:00:30]} 32... Rdxd4 {[%clk 0:00:29.9]} 33. Rxd4 {[%clk
0:00:25.6]} 33... Rxd4 {[%clk 0:00:30.8]} 34. Rb1 {[%clk 0:00:25.6]} 34... Bd2
{[%clk 0:00:27.6]} 35. Bd3 {[%clk 0:00:20.2]} 35... Bxb4 {[%clk 0:00:25.7]} 36.
Ke3 {[%clk 0:00:20.4]} 36... e5 {[%clk 0:00:24.3]} 37. Ke2 {[%clk 0:00:19.1]}
37... Kf6 {[%clk 0:00:20.3]} 38. Rb3 {[%clk 0:00:13.9]} 38... g5 {[%clk
0:00:20.1]} 39. Rb1 {[%clk 0:00:13.2]} 39... f4 {[%clk 0:00:15.6]} 40. Be4
{[%clk 0:00:11.4]} 40... Ke7 {[%clk 0:00:15.5]} 41. Kf1 {[%clk 0:00:09.6]} 41...
Kd8 {[%clk 0:00:15.4]} 42. Kg2 {[%clk 0:00:09.5]} 42... Kc7 {[%clk 0:00:15.6]}
43. h4 {[%clk 0:00:09.9]} 43... Bxc5 {[%clk 0:00:13.9]} 44. Rh1 {[%clk
0:00:10.4]} 44... Be7 {[%clk 0:00:13.5]} 45. hxg5 {[%clk 0:00:10.1]} 45... Bxg5
{[%clk 0:00:13.6]} 46. Rb1 {[%clk 0:00:08.5]} 46... Ra4 {[%clk 0:00:12.9]} 47.
Kh3 {[%clk 0:00:06.7]} 47... Rxa5 {[%clk 0:00:12.8]} 48. Kg4 {[%clk 0:00:07.2]}
48... Rc5 {[%clk 0:00:12.4]} 49. Kf5 {[%clk 0:00:07.4]} 49... a5 {[%clk
0:00:12.6]} 50. Ke6 {[%clk 0:00:05.4]} 50... a4 {[%clk 0:00:12.5]} 51. Ra1
{[%clk 0:00:03.2]} 51... b5 {[%clk 0:00:12.2]} 52. Ra2 {[%clk 0:00:03.7]} 52...
Rc3 {[%clk 0:00:09.8]} 53. Kxe5 {[%clk 0:00:03.1]} 53... Kb6 {[%clk 0:00:08.9]}
54. Kd4 {[%clk 0:00:03.1]} 54... Bf6# {[%clk 0:00:07.3]} 0-1

[Event "*** SCC Grand Prix: Titled Tuesday Blitz"]
[Site "Chess.com"]
[Date "2020.07.21"]
[Round "4"]
[White "BocharovD"]
[Black "Batsai"]
[Result "1-0"]
[WhiteElo "2737"]
[BlackElo "2360"]
[TimeControl "180+1"]
[EndTime "10:39:14 PDT"]
[Termination "BocharovD won by resignation"]

1. e4 {[%clk 0:03:00.9]} 1... d5 {[%clk 0:02:51.1]} 2. exd5 {[%clk 0:02:55.1]}
2... Qxd5 {[%clk 0:02:49.6]} 3. Nc3 {[%clk 0:02:56]} 3... Qa5 {[%clk 0:02:49.7]}
4. d4 {[%clk 0:02:56.3]} 4... c6 {[%clk 0:02:50.3]} 5. Nf3 {[%clk 0:02:56.8]}
5... Nf6 {[%clk 0:02:50.6]} 6. Bd2 {[%clk 0:02:57.2]} 6... Bf5 {[%clk
0:02:48.2]} 7. Bc4 {[%clk 0:02:54.8]} 7... e6 {[%clk 0:02:46.5]} 8. Nd5 {[%clk
0:02:49.2]} 8... Qd8 {[%clk 0:02:43.7]} 9. Nxf6+ {[%clk 0:02:49.4]} 9... gxf6
{[%clk 0:02:43.2]} 10. Bb3 {[%clk 0:02:46.2]} 10... Nd7 {[%clk 0:02:42.6]} 11.
Qe2 {[%clk 0:02:35.5]} 11... h5 {[%clk 0:02:36.9]} 12. Nh4 {[%clk 0:02:32.9]}
12... Bg4 {[%clk 0:02:23.4]} 13. f3 {[%clk 0:02:32.7]} 13... f5 {[%clk 0:02:24]}
14. g3 {[%clk 0:02:32.9]} 14... Bh3 {[%clk 0:02:23.1]} 15. O-O-O {[%clk
0:02:28.8]} 15... Be7 {[%clk 0:02:19]} 16. Bxe6 {[%clk 0:02:16.9]} 16... fxe6
{[%clk 0:02:13.7]} 17. Ng6 {[%clk 0:02:05.5]} 17... Rg8 {[%clk 0:01:53.3]} 18.
Qxe6 {[%clk 0:02:01.1]} 18... Nf6 {[%clk 0:01:53.8]} 19. Nf4 {[%clk 0:01:55]}
19... Bg4 {[%clk 0:01:22.2]} 20. Rhe1 {[%clk 0:01:49.4]} 20... Bxf3 {[%clk
0:01:18.1]} 21. Qxf6 {[%clk 0:01:40.7]} 21... Bxd1 {[%clk 0:01:18.1]} 22. Kxd1
{[%clk 0:01:39.8]} 22... Qd7 {[%clk 0:00:59.3]} 23. Bb4 {[%clk 0:01:37.4]} 23...
O-O-O {[%clk 0:00:53]} 24. Rxe7 {[%clk 0:01:29.6]} 24... Qxd4+ {[%clk 0:00:53]}
25. Qxd4 {[%clk 0:01:20.1]} 25... Rxd4+ {[%clk 0:00:53.9]} 26. Bd2 {[%clk
0:01:14.1]} 26... h4 {[%clk 0:00:53.5]} 27. Ne6 {[%clk 0:01:10.5]} 27... hxg3
{[%clk 0:00:47.5]} 28. hxg3 {[%clk 0:01:06.9]} 28... Rd5 {[%clk 0:00:24.6]} 29.
c4 {[%clk 0:00:59]} 29... Rd7 {[%clk 0:00:24.6]} 30. Rxd7 {[%clk 0:00:57.4]}
30... Kxd7 {[%clk 0:00:25.5]} 31. Nc5+ {[%clk 0:00:57.7]} 31... Kc8 {[%clk
0:00:24.2]} 32. Bf4 {[%clk 0:00:57]} 32... b6 {[%clk 0:00:22.3]} 33. Ne6 {[%clk
0:00:55]} 33... Re8 {[%clk 0:00:16.6]} 34. Ng7 {[%clk 0:00:54.2]} 34... Rf8
{[%clk 0:00:13.9]} 35. Ne6 {[%clk 0:00:47.7]} 35... Re8 {[%clk 0:00:13.6]} 36.
Ng5 {[%clk 0:00:45.5]} 36... Kd7 {[%clk 0:00:13]} 37. Kd2 {[%clk 0:00:44.1]}
37... Rh8 {[%clk 0:00:12.4]} 38. Nf3 {[%clk 0:00:43.3]} 38... Rh1 {[%clk
0:00:12]} 39. Nd4 {[%clk 0:00:42.1]} 39... c5 {[%clk 0:00:04]} 40. Nxf5 {[%clk
0:00:41.4]} 40... Ra1 {[%clk 0:00:04]} 41. a3 {[%clk 0:00:40.8]} 41... Ke6
{[%clk 0:00:04.9]} 42. Ne3 {[%clk 0:00:40.1]} 42... Rh1 {[%clk 0:00:02.9]} 43.
Bb8 {[%clk 0:00:39.4]} 43... a6 {[%clk 0:00:02.7]} 44. Ba7 {[%clk 0:00:39.3]}
44... Rh2+ {[%clk 0:00:03.6]} 45. Kc3 {[%clk 0:00:39.1]} 45... b5 {[%clk
0:00:03.9]} 46. Bxc5 {[%clk 0:00:38.4]} 46... Rh3 {[%clk 0:00:03]} 47. cxb5
{[%clk 0:00:32.3]} 47... axb5 {[%clk 0:00:03.9]} 48. g4 {[%clk 0:00:32.6]} 48...
Ke5 {[%clk 0:00:02.8]} 49. Kb4 {[%clk 0:00:32.5]} 49... Ke4 {[%clk 0:00:03.2]}
50. Kxb5 {[%clk 0:00:32.1]} 50... Rh2 {[%clk 0:00:03.5]} 51. b4 {[%clk
0:00:31.9]} 51... Ra2 {[%clk 0:00:03.9]} 52. a4 {[%clk 0:00:32.2]} 52... Rd2
{[%clk 0:00:03.8]} 53. a5 {[%clk 0:00:32.3]} 53... Rd5 {[%clk 0:00:04.7]} 54. a6
{[%clk 0:00:32.3]} 54... Ke5 {[%clk 0:00:05.6]} 55. a7 {[%clk 0:00:32.4]} 55...
Rd8 {[%clk 0:00:06.5]} 56. Kc6 {[%clk 0:00:30.3]} 56... Rc8+ {[%clk 0:00:06.2]}
57. Kb7 {[%clk 0:00:30.4]} 57... Rb8+ {[%clk 0:00:07.1]} 58. axb8=Q+ {[%clk
0:00:29.3]} 58... Ke4 {[%clk 0:00:08]} 59. Qe8+ {[%clk 0:00:27.1]} 59... Kd3
{[%clk 0:00:08.9]} 60. Qg6+ {[%clk 0:00:26.9]} 60... Ke2 {[%clk 0:00:09.8]} 1-0

[Event "*** SCC Grand Prix: Titled Tuesday Blitz"]
[Site "Chess.com"]
[Date "2020.07.21"]
[Round "4"]
[White "Tooweak2slow03"]
[Black "RodinMihail"]
[Result "1-0"]
[WhiteElo "2692"]
[BlackElo "2484"]
[TimeControl "180+1"]
[EndTime "10:39:15 PDT"]
[Termination "Tooweak2slow03 won by checkmate"]

1. e4 {[%clk 0:03:00.9]} 1... e5 {[%clk 0:03:00.1]} 2. Nf3 {[%clk 0:03:00.3]}
2... Nc6 {[%clk 0:03:00.7]} 3. Nc3 {[%clk 0:03:00]} 3... Nf6 {[%clk 0:03:00]} 4.
a3 {[%clk 0:03:00]} 4... d5 {[%clk 0:02:59.2]} 5. Bb5 {[%clk 0:02:59.9]} 5...
Nxe4 {[%clk 0:02:58.2]} 6. Qe2 {[%clk 0:02:59.9]} 6... Nxc3 {[%clk 0:02:57.3]}
7. Qxe5+ {[%clk 0:02:59.7]} 7... Be7 {[%clk 0:02:58]} 8. dxc3 {[%clk 0:02:59.4]}
8... O-O {[%clk 0:02:57.2]} 9. Bxc6 {[%clk 0:02:59]} 9... bxc6 {[%clk 0:02:57]}
10. O-O {[%clk 0:02:58.9]} 10... Bd6 {[%clk 0:02:55.6]} 11. Qh5 {[%clk
0:02:57.5]} 11... Qf6 {[%clk 0:02:51.9]} 12. Be3 {[%clk 0:02:55.3]} 12... c5
{[%clk 0:02:47.9]} 13. Rad1 {[%clk 0:02:51.3]} 13... c6 {[%clk 0:02:44.9]} 14.
Rfe1 {[%clk 0:02:41.7]} 14... Bf5 {[%clk 0:02:43.1]} 15. Rd2 {[%clk 0:02:36.1]}
15... h6 {[%clk 0:02:41.6]} 16. Nh4 {[%clk 0:02:24.4]} 16... Be4 {[%clk
0:02:33.6]} 17. Qg4 {[%clk 0:02:14.3]} 17... Rfe8 {[%clk 0:02:22.1]} 18. Rde2
{[%clk 0:02:13.1]} 18... Re6 {[%clk 0:02:17]} 19. b4 {[%clk 0:01:04.4]} 19...
cxb4 {[%clk 0:02:14.6]} 20. cxb4 {[%clk 0:01:00.1]} 20... a5 {[%clk 0:02:11.5]}
21. bxa5 {[%clk 0:00:58]} 21... Rxa5 {[%clk 0:02:07.9]} 22. f3 {[%clk
0:00:58.1]} 22... Bh7 {[%clk 0:01:54.9]} 23. Bf2 {[%clk 0:00:50.2]} 23... Rxe2
{[%clk 0:01:36.4]} 24. Rxe2 {[%clk 0:00:51.1]} 24... Ra8 {[%clk 0:01:36]} 25. a4
{[%clk 0:00:45.8]} 25... Qg5 {[%clk 0:01:29.9]} 26. Qd7 {[%clk 0:00:44.3]} 26...
Qd8 {[%clk 0:01:08.9]} 27. Qxc6 {[%clk 0:00:41.6]} 27... g5 {[%clk 0:01:07.2]}
28. a5 {[%clk 0:00:37.2]} 28... Rc8 {[%clk 0:01:04.2]} 29. Qa4 {[%clk
0:00:34.4]} 29... gxh4 {[%clk 0:01:02.1]} 30. a6 {[%clk 0:00:34.4]} 30... Ra8
{[%clk 0:01:01.1]} 31. a7 {[%clk 0:00:31.4]} 31... Bg6 {[%clk 0:00:59.9]} 32.
Qc6 {[%clk 0:00:28.4]} 32... Rc8 {[%clk 0:00:50.8]} 33. Qb7 {[%clk 0:00:26.2]}
33... Qc7 {[%clk 0:00:40.9]} 34. a8=Q {[%clk 0:00:24]} 34... Rxa8 {[%clk
0:00:37.9]} 35. Qxa8+ {[%clk 0:00:24.9]} 35... Kh7 {[%clk 0:00:38.6]} 36. Bd4
{[%clk 0:00:21.8]} 36... Qb8 {[%clk 0:00:21.8]} 37. Qxb8 {[%clk 0:00:19.8]}
37... Bxb8 {[%clk 0:00:22.7]} 38. Re8 {[%clk 0:00:19.4]} 38... Be5 {[%clk
0:00:20.8]} 39. Bxe5 {[%clk 0:00:18.6]} 39... f6 {[%clk 0:00:21.7]} 40. Bxf6
{[%clk 0:00:18.8]} 40... Bxe8 {[%clk 0:00:21.2]} 41. Bxh4 {[%clk 0:00:18.9]}
41... Kg6 {[%clk 0:00:20.9]} 42. c3 {[%clk 0:00:19]} 42... Bb5 {[%clk
0:00:20.9]} 43. Kf2 {[%clk 0:00:19.2]} 43... Bc4 {[%clk 0:00:21.8]} 44. Ke3
{[%clk 0:00:19.3]} 44... Kf5 {[%clk 0:00:22.7]} 45. g4+ {[%clk 0:00:19.3]} 45...
Kg6 {[%clk 0:00:23.1]} 46. f4 {[%clk 0:00:19.1]} 46... Bb3 {[%clk 0:00:22.8]}
47. f5+ {[%clk 0:00:19.1]} 47... Kf7 {[%clk 0:00:23.4]} 48. Kf4 {[%clk
0:00:19.3]} 48... Bd1 {[%clk 0:00:23.2]} 49. h3 {[%clk 0:00:19]} 49... Be2
{[%clk 0:00:23.1]} 50. Bf2 {[%clk 0:00:19.1]} 50... Bf1 {[%clk 0:00:22.9]} 51.
h4 {[%clk 0:00:19.3]} 51... Be2 {[%clk 0:00:23.2]} 52. g5 {[%clk 0:00:18.5]}
52... hxg5+ {[%clk 0:00:22.9]} 53. hxg5 {[%clk 0:00:19.4]} 53... Bd3 {[%clk
0:00:22.5]} 54. Bd4 {[%clk 0:00:19.3]} 54... Bc2 {[%clk 0:00:19.2]} 55. g6+
{[%clk 0:00:19.4]} 55... Kg8 {[%clk 0:00:16]} 56. Kg5 {[%clk 0:00:20.3]} 56...
Kf8 {[%clk 0:00:16.2]} 57. f6 {[%clk 0:00:20.5]} 57... Ke8 {[%clk 0:00:16.7]}
58. f7+ {[%clk 0:00:20.4]} 58... Ke7 {[%clk 0:00:15.2]} 59. Bc5+ {[%clk
0:00:20.1]} 59... Ke6 {[%clk 0:00:16.1]} 60. f8=Q {[%clk 0:00:20.3]} 60... d4
{[%clk 0:00:17]} 61. Qd6# {[%clk 0:00:20.2]} 1-0

[Event "*** SCC Grand Prix: Titled Tuesday Blitz"]
[Site "Chess.com"]
[Date "2020.07.21"]
[Round "4"]
[White "aa175"]
[Black "okriak"]
[Result "0-1"]
[WhiteElo "2486"]
[BlackElo "2701"]
[TimeControl "180+1"]
[EndTime "10:39:16 PDT"]
[Termination "okriak won on time"]

1. d4 {[%clk 0:03:00.9]} 1... d5 {[%clk 0:02:59.4]} 2. Bf4 {[%clk 0:03:00.7]}
2... Nf6 {[%clk 0:02:58.6]} 3. e3 {[%clk 0:03:01.2]} 3... c5 {[%clk 0:02:58.6]}
4. Nf3 {[%clk 0:03:01.4]} 4... Nc6 {[%clk 0:02:58.5]} 5. Nbd2 {[%clk 0:03:01.9]}
5... Qb6 {[%clk 0:02:55.5]} 6. dxc5 {[%clk 0:03:01.5]} 6... Qxc5 {[%clk
0:02:54.5]} 7. h3 {[%clk 0:02:56.9]} 7... Bf5 {[%clk 0:02:54]} 8. a3 {[%clk
0:02:49.4]} 8... Qxc2 {[%clk 0:02:49.9]} 9. Qxc2 {[%clk 0:02:47.2]} 9... Bxc2
{[%clk 0:02:49.6]} 10. Rc1 {[%clk 0:02:43.5]} 10... Bf5 {[%clk 0:02:49.4]} 11.
Nb3 {[%clk 0:02:37.2]} 11... Rc8 {[%clk 0:02:40]} 12. Bb5 {[%clk 0:02:22.6]}
12... a6 {[%clk 0:02:22.7]} 13. Bxc6+ {[%clk 0:02:10.8]} 13... bxc6 {[%clk
0:02:21]} 14. Ne5 {[%clk 0:01:58]} 14... e6 {[%clk 0:02:10.8]} 15. Rxc6 {[%clk
0:01:30.9]} 15... Rxc6 {[%clk 0:02:08.9]} 16. Nxc6 {[%clk 0:01:31.8]} 16... Bc2
{[%clk 0:01:17.2]} 17. Nbd4 {[%clk 0:01:21.8]} 17... Ba4 {[%clk 0:01:16.9]} 18.
O-O {[%clk 0:01:09.7]} 18... Bxc6 {[%clk 0:01:13.3]} 19. Nxc6 {[%clk 0:01:08.8]}
19... Bc5 {[%clk 0:00:58.7]} 20. Rc1 {[%clk 0:01:07.1]} 20... Bb6 {[%clk
0:00:58.8]} 21. Bd6 {[%clk 0:01:02.5]} 21... Ne4 {[%clk 0:00:53.7]} 22. Bb4
{[%clk 0:00:54.1]} 22... f6 {[%clk 0:00:53.4]} 23. Ba5 {[%clk 0:00:17.3]} 23...
Bxa5 {[%clk 0:00:49]} 24. Nxa5 {[%clk 0:00:18.2]} 24... Kd7 {[%clk 0:00:48.9]}
25. f3 {[%clk 0:00:14.1]} 25... Nd6 {[%clk 0:00:47.9]} 26. Rc6 {[%clk
0:00:13.8]} 26... Ra8 {[%clk 0:00:47.2]} 27. Rb6 {[%clk 0:00:08.7]} 27... Kc7
{[%clk 0:00:46.6]} 28. Rc6+ {[%clk 0:00:08.4]} 28... Kd7 {[%clk 0:00:46.9]} 29.
Rb6 {[%clk 0:00:08.7]} 29... Ra7 {[%clk 0:00:46.9]} 30. b4 {[%clk 0:00:06]}
30... Nc4 {[%clk 0:00:41.5]} 31. Rb8 {[%clk 0:00:04]} 31... Nxa5 {[%clk
0:00:40.2]} 32. bxa5 {[%clk 0:00:04.9]} 32... Rc7 {[%clk 0:00:39.4]} 33. Rg8
{[%clk 0:00:02.9]} 33... Kd6 {[%clk 0:00:36.9]} 34. Ra8 {[%clk 0:00:02.4]} 34...
Rc3 {[%clk 0:00:34.3]} 35. Rxa6+ {[%clk 0:00:02.3]} 35... Ke5 {[%clk 0:00:34.6]}
36. Kf2 {[%clk 0:00:02.7]} 36... g5 {[%clk 0:00:33]} 37. h4 {[%clk 0:00:02.4]}
37... gxh4 {[%clk 0:00:32.4]} 38. Ra7 {[%clk 0:00:02.7]} 38... Rxa3 {[%clk
0:00:31.7]} 39. Rxh7 {[%clk 0:00:02.6]} 39... Ra2+ {[%clk 0:00:32.1]} 40. Kf1
{[%clk 0:00:02.6]} 40... Rxa5 {[%clk 0:00:31.7]} 41. Rxh4 {[%clk 0:00:03]} 41...
f5 {[%clk 0:00:29.6]} 42. Rd4 {[%clk 0:00:03.1]} 42... Kf6 {[%clk 0:00:27.1]}
43. Rd2 {[%clk 0:00:03.5]} 43... e5 {[%clk 0:00:27]} 44. Ke2 {[%clk 0:00:03.9]}
44... Ke6 {[%clk 0:00:27.1]} 45. g4 {[%clk 0:00:03.9]} 45... fxg4 {[%clk
0:00:26.8]} 46. fxg4 {[%clk 0:00:04.8]} 46... Ra1 {[%clk 0:00:26.3]} 47. Kf3
{[%clk 0:00:04.4]} 47... e4+ {[%clk 0:00:25.6]} 48. Kf4 {[%clk 0:00:04.4]} 48...
Rf1+ {[%clk 0:00:25.1]} 49. Kg5 {[%clk 0:00:04.5]} 49... Rf3 {[%clk 0:00:24.3]}
50. Ra2 {[%clk 0:00:02.9]} 50... Rxe3 {[%clk 0:00:23.9]} 51. Ra8 {[%clk
0:00:03.4]} 51... Ke5 {[%clk 0:00:21.8]} 52. Re8+ {[%clk 0:00:03.7]} 52... Kd4
{[%clk 0:00:22.1]} 53. Kg6 {[%clk 0:00:03.6]} 53... Rg3 {[%clk 0:00:21.8]} 54.
Kf5 {[%clk 0:00:03.1]} 54... Ke3 {[%clk 0:00:20.5]} 55. g5 {[%clk 0:00:02]}
55... Kd3 {[%clk 0:00:19.3]} 56. g6 {[%clk 0:00:02]} 56... e3 {[%clk 0:00:19.6]}
0-1